[Event "Late-Titled-Tuesday-Blitz-October-10-2023"]
[Site "Chess.com"]
[Date "2023.10.10"]
[Round "8"]
[White "ChristopherYoo"]
[Black "rezamahdavi2008"]
[Result "1-0"]
[WhiteElo "3025"]
[BlackElo "2865"]
[TimeControl "180+1"]
[EndTime "15:21:00 PDT"]
[Termination "ChristopherYoo won by resignation"]

1. d4 {[%clk 0:03:00.9]} 1... Nf6 {[%clk 0:03:00.2]} 2. c4 {[%clk 0:03:00.4]}
2... e6 {[%clk 0:02:59.2]} 3. Nc3 {[%clk 0:03:00.5]} 3... Bb4 {[%clk 0:02:59.4]}
4. e3 {[%clk 0:02:58.2]} 4... O-O {[%clk 0:02:58]} 5. Bd2 {[%clk 0:02:58]} 5...
c5 {[%clk 0:02:54.1]} 6. a3 {[%clk 0:02:49.9]} 6... Bxc3 {[%clk 0:02:54.4]} 7.
Bxc3 {[%clk 0:02:50.8]} 7... Ne4 {[%clk 0:02:55.1]} 8. Rc1 {[%clk 0:02:44.8]}
8... d6 {[%clk 0:02:55.3]} 9. Bd3 {[%clk 0:02:26.7]} 9... Nxc3 {[%clk
0:02:51.5]} 10. Rxc3 {[%clk 0:02:27.6]} 10... Qe7 {[%clk 0:02:51.1]} 11. Ne2
{[%clk 0:02:09.9]} 11... e5 {[%clk 0:02:51.2]} 12. dxc5 {[%clk 0:02:07.6]} 12...
dxc5 {[%clk 0:02:51.5]} 13. Be4 {[%clk 0:01:56.5]} 13... Rd8 {[%clk 0:02:52]}
14. Qc2 {[%clk 0:01:55.1]} 14... g6 {[%clk 0:02:48.3]} 15. O-O {[%clk
0:01:54.4]} 15... Nd7 {[%clk 0:02:48.4]} 16. Bd5 {[%clk 0:01:51.4]} 16... Nf6
{[%clk 0:02:48.8]} 17. e4 {[%clk 0:01:51.7]} 17... Nxd5 {[%clk 0:02:44.1]} 18.
cxd5 {[%clk 0:01:48]} 18... b6 {[%clk 0:02:44.3]} 19. Rd1 {[%clk 0:01:39.2]}
19... Ba6 {[%clk 0:02:28.3]} 20. Ng3 {[%clk 0:01:34.1]} 20... h5 {[%clk
0:02:24.8]} 21. h3 {[%clk 0:01:33]} 21... h4 {[%clk 0:02:24.4]} 22. Nf1 {[%clk
0:01:33.2]} 22... Bxf1 {[%clk 0:02:25]} 23. Rxf1 {[%clk 0:01:32.8]} 23... Rd6
{[%clk 0:02:25.7]} 24. b4 {[%clk 0:01:25]} 24... cxb4 {[%clk 0:02:23.8]} 25.
axb4 {[%clk 0:01:25.9]} 25... Rf6 {[%clk 0:02:22.9]} 26. b5 {[%clk 0:01:19.4]}
26... Rf4 {[%clk 0:02:17.2]} 27. Rc7 {[%clk 0:01:02.7]} 27... Qb4 {[%clk
0:02:16.4]} 28. Qc6 {[%clk 0:00:59.3]} 28... Rd8 {[%clk 0:02:05]} 29. Rxa7
{[%clk 0:00:54.2]} 29... Rxe4 {[%clk 0:02:05.4]} 30. Qxb6 {[%clk 0:00:42.9]}
30... Rxd5 {[%clk 0:01:33.3]} 31. Qb7 {[%clk 0:00:39]} 1-0

[Event "Late-Titled-Tuesday-Blitz-October-10-2023"]
[Site "Chess.com"]
[Date "2023.10.10"]
[Round "8"]
[White "Walter_White_Poland"]
[Black "KorolDimitriy75"]
[Result "1-0"]
[WhiteElo "2341"]
[BlackElo "2398"]
[TimeControl "180+1"]
[EndTime "15:21:15 PDT"]
[Termination "Walter_White_Poland won on time"]

1. Nf3 {[%clk 0:03:00.9]} 1... c5 {[%clk 0:03:00.2]} 2. c4 {[%clk 0:02:59.8]}
2... g6 {[%clk 0:03:00.5]} 3. g3 {[%clk 0:02:59.3]} 3... Bg7 {[%clk 0:03:00.9]}
4. Bg2 {[%clk 0:02:59.4]} 4... Nc6 {[%clk 0:03:01.5]} 5. O-O {[%clk 0:02:59]}
5... Nh6 {[%clk 0:03:01.6]} 6. d4 {[%clk 0:02:49.9]} 6... cxd4 {[%clk
0:03:00.4]} 7. e3 {[%clk 0:02:42.2]} 7... dxe3 {[%clk 0:02:57.4]} 8. Bxe3 {[%clk
0:02:42.1]} 8... Nf5 {[%clk 0:02:38.7]} 9. Bc1 {[%clk 0:02:41.4]} 9... O-O
{[%clk 0:02:35.3]} 10. Nc3 {[%clk 0:02:41.1]} 10... d6 {[%clk 0:02:34.7]} 11.
Re1 {[%clk 0:02:29.2]} 11... Be6 {[%clk 0:02:29.6]} 12. Nd5 {[%clk 0:02:27.7]}
12... Na5 {[%clk 0:02:24.8]} 13. Bg5 {[%clk 0:01:59.6]} 13... h6 {[%clk
0:01:30.7]} 14. g4 {[%clk 0:01:48.3]} 14... Bxd5 {[%clk 0:00:43.7]} 15. Qxd5
{[%clk 0:01:39.8]} 15... hxg5 {[%clk 0:00:39.9]} 16. gxf5 {[%clk 0:01:39.6]}
16... g4 {[%clk 0:00:27]} 17. Ng5 {[%clk 0:01:30.2]} 17... e6 {[%clk 0:00:03.3]}
18. fxe6 {[%clk 0:01:29.7]} 18... fxe6 {[%clk 0:00:02.4]} 19. Qxe6+ {[%clk
0:01:28.1]} 19... Kh8 {[%clk 0:00:02.1]} 20. Qxg6 {[%clk 0:01:27.3]} 1-0

[Event "Late-Titled-Tuesday-Blitz-October-10-2023"]
[Site "Chess.com"]
[Date "2023.10.10"]
[Round "8"]
[White "Roberz12"]
[Black "GMG"]
[Result "1-0"]
[WhiteElo "2495"]
[BlackElo "2708"]
[TimeControl "180+1"]
[EndTime "15:21:23 PDT"]
[Termination "Roberz12 won by resignation"]

1. d4 {[%clk 0:02:59.1]} 1... f5 {[%clk 0:02:59.5]} 2. Bg5 {[%clk 0:02:57.8]}
2... c6 {[%clk 0:02:58]} 3. e3 {[%clk 0:02:57.3]} 3... Qb6 {[%clk 0:02:48.5]} 4.
Nd2 {[%clk 0:02:51.2]} 4... Qxb2 {[%clk 0:02:42.9]} 5. Bd3 {[%clk 0:02:50.3]}
5... d6 {[%clk 0:02:35.6]} 6. Ngf3 {[%clk 0:02:45.9]} 6... Qc3 {[%clk
0:02:32.5]} 7. O-O {[%clk 0:02:44.6]} 7... h6 {[%clk 0:02:33]} 8. Bf4 {[%clk
0:02:44.1]} 8... g5 {[%clk 0:02:32.9]} 9. Bg3 {[%clk 0:02:44.6]} 9... Nf6 {[%clk
0:02:21.7]} 10. Rb1 {[%clk 0:02:40.8]} 10... Bg7 {[%clk 0:02:17.3]} 11. Nc4
{[%clk 0:02:40.4]} 11... b5 {[%clk 0:02:02.3]} 12. Rb3 {[%clk 0:02:39.8]} 12...
Qxc4 {[%clk 0:02:02.2]} 13. Bxc4 {[%clk 0:02:39.6]} 13... bxc4 {[%clk
0:02:03.1]} 14. Rb1 {[%clk 0:02:38.5]} 14... Nbd7 {[%clk 0:02:01.4]} 15. h4
{[%clk 0:02:32.2]} 15... Ne4 {[%clk 0:01:58.8]} 16. Nd2 {[%clk 0:02:29.4]} 16...
Nxg3 {[%clk 0:01:53.1]} 17. fxg3 {[%clk 0:02:29.1]} 17... Nf6 {[%clk 0:01:47.7]}
18. Nxc4 {[%clk 0:02:28.5]} 18... O-O {[%clk 0:01:43.6]} 19. hxg5 {[%clk
0:02:24.6]} 19... hxg5 {[%clk 0:01:44.5]} 20. Nd2 {[%clk 0:02:18.5]} 20... Ng4
{[%clk 0:01:33.8]} 21. Qf3 {[%clk 0:02:18.2]} 21... d5 {[%clk 0:01:32.2]} 22. c4
{[%clk 0:02:15.7]} 22... e6 {[%clk 0:01:32.1]} 23. cxd5 {[%clk 0:02:13.3]} 23...
cxd5 {[%clk 0:01:33]} 24. Rfc1 {[%clk 0:02:13]} 24... Ba6 {[%clk 0:01:29.2]} 25.
Rc6 {[%clk 0:02:09.1]} 25... Bd3 {[%clk 0:01:29]} 26. Rb7 {[%clk 0:02:06.2]}
26... Rac8 {[%clk 0:01:20.3]} 27. Rcc7 {[%clk 0:01:48]} 27... Rxc7 {[%clk
0:01:18.3]} 28. Rxc7 {[%clk 0:01:48.9]} 28... Rb8 {[%clk 0:01:18.4]} 29. Qd1
{[%clk 0:01:47.1]} 29... Nxe3 {[%clk 0:01:13.5]} 30. Qa4 {[%clk 0:01:46.9]}
30... Bf8 {[%clk 0:00:25.8]} 31. Qd7 {[%clk 0:01:23.3]} 1-0

[Event "Late-Titled-Tuesday-Blitz-October-10-2023"]
[Site "Chess.com"]
[Date "2023.10.10"]
[Round "8"]
[White "Lion-Al-Messi"]
[Black "rdarruda"]
[Result "1-0"]
[WhiteElo "2629"]
[BlackElo "2505"]
[TimeControl "180+1"]
[EndTime "15:21:24 PDT"]
[Termination "Lion-Al-Messi won by resignation"]

1. e4 {[%clk 0:03:00.9]} 1... c5 {[%clk 0:02:59.5]} 2. Nf3 {[%clk 0:03:01.3]}
2... Nc6 {[%clk 0:02:58.5]} 3. d4 {[%clk 0:03:01.9]} 3... cxd4 {[%clk
0:02:58.6]} 4. Nxd4 {[%clk 0:03:02.8]} 4... e5 {[%clk 0:02:58.7]} 5. Nb5 {[%clk
0:03:02.5]} 5... a6 {[%clk 0:02:59.2]} 6. Nd6+ {[%clk 0:03:02.4]} 6... Bxd6
{[%clk 0:02:59.8]} 7. Qxd6 {[%clk 0:03:02.7]} 7... Qe7 {[%clk 0:03:00.6]} 8.
Qxe7+ {[%clk 0:03:02.8]} 8... Ngxe7 {[%clk 0:03:01.5]} 9. Nc3 {[%clk 0:03:02.8]}
9... Nb4 {[%clk 0:03:01.7]} 10. Bd3 {[%clk 0:02:54.6]} 10... d5 {[%clk
0:03:01.3]} 11. exd5 {[%clk 0:02:51.4]} 11... Bf5 {[%clk 0:03:01.2]} 12. Bxf5
{[%clk 0:02:32.2]} 12... Nxf5 {[%clk 0:03:00.9]} 13. O-O {[%clk 0:02:32.2]}
13... O-O-O {[%clk 0:03:00.5]} 14. Be3 {[%clk 0:02:26.7]} 14... Nxd5 {[%clk
0:02:58.2]} 15. Nxd5 {[%clk 0:02:23]} 15... Rxd5 {[%clk 0:02:59.1]} 16. c4
{[%clk 0:02:14.9]} 16... Rd3 {[%clk 0:02:54.3]} 17. Bb6 {[%clk 0:02:15]} 17...
Re8 {[%clk 0:02:48.8]} 18. Rad1 {[%clk 0:02:13.6]} 18... e4 {[%clk 0:02:44.9]}
19. h3 {[%clk 0:02:12]} 19... Re6 {[%clk 0:02:40.9]} 20. c5 {[%clk 0:02:10.9]}
20... Nd4 {[%clk 0:02:40.5]} 21. Kh2 {[%clk 0:02:03.7]} 21... Rxd1 {[%clk
0:02:17.4]} 22. Rxd1 {[%clk 0:02:04.6]} 22... Nc6 {[%clk 0:02:17.6]} 23. b4
{[%clk 0:02:02.1]} 23... Re7 {[%clk 0:02:01.2]} 24. a3 {[%clk 0:01:55.9]} 24...
f5 {[%clk 0:01:58.4]} 25. Kg3 {[%clk 0:01:55.2]} 25... Rd7 {[%clk 0:01:56.6]}
26. Re1 {[%clk 0:01:51.2]} 26... Rd3+ {[%clk 0:01:54.7]} 27. Kf4 {[%clk
0:01:50.1]} 27... g6 {[%clk 0:01:54]} 28. f3 {[%clk 0:01:36.1]} 28... exf3
{[%clk 0:01:47.9]} 29. gxf3 {[%clk 0:01:37]} 29... Nd4 {[%clk 0:01:47.5]} 30.
Re7 {[%clk 0:01:29.1]} 30... Rxf3+ {[%clk 0:01:42.5]} 31. Kg5 {[%clk 0:01:28.7]}
31... Rxh3 {[%clk 0:01:10.1]} 32. Re8+ {[%clk 0:01:23.2]} 32... Kd7 {[%clk
0:01:10.1]} 33. Rd8+ {[%clk 0:01:23.8]} 33... Ke6 {[%clk 0:01:10.3]} 34. Rxd4
{[%clk 0:01:24.7]} 34... Rxa3 {[%clk 0:01:09.9]} 35. Rd6+ {[%clk 0:01:20.6]}
35... Ke7 {[%clk 0:01:09.5]} 36. Bd8+ {[%clk 0:01:17.4]} 36... Ke8 {[%clk
0:01:09.1]} 37. Kf6 {[%clk 0:01:17.2]} 37... Re3 {[%clk 0:00:58.6]} 38. Bb6
{[%clk 0:01:16]} 38... Kf8 {[%clk 0:00:57.3]} 39. Bc7 {[%clk 0:01:13.6]} 39...
f4 {[%clk 0:00:52.4]} 40. Rd8+ {[%clk 0:01:13.4]} 40... Re8 {[%clk 0:00:52.3]}
41. Bd6+ {[%clk 0:01:13.8]} 1-0

[Event "Late-Titled-Tuesday-Blitz-October-10-2023"]
[Site "Chess.com"]
[Date "2023.10.10"]
[Round "8"]
[White "DonJuanEGenaro"]
[Black "Nekoo04"]
[Result "0-1"]
[WhiteElo "1923"]
[BlackElo "2270"]
[TimeControl "180+1"]
[EndTime "15:21:24 PDT"]
[Termination "Nekoo04 won by resignation"]

1. e4 {[%clk 0:02:59.8]} 1... c5 {[%clk 0:02:53]} 2. c3 {[%clk 0:02:58.9]} 2...
d5 {[%clk 0:02:52.4]} 3. exd5 {[%clk 0:02:58]} 3... Qxd5 {[%clk 0:02:53.3]} 4.
d4 {[%clk 0:02:58]} 4... Nf6 {[%clk 0:02:53.2]} 5. Nf3 {[%clk 0:02:58.1]} 5...
e6 {[%clk 0:02:52.8]} 6. Be2 {[%clk 0:02:58]} 6... Nc6 {[%clk 0:02:52.3]} 7. Na3
{[%clk 0:02:56.9]} 7... cxd4 {[%clk 0:02:42]} 8. Nb5 {[%clk 0:02:56.7]} 8... Qd8
{[%clk 0:02:42.6]} 9. Nfxd4 {[%clk 0:02:53.8]} 9... Nxd4 {[%clk 0:02:41.2]} 10.
Qxd4 {[%clk 0:02:52.7]} 10... Qxd4 {[%clk 0:02:41]} 11. cxd4 {[%clk 0:02:52.3]}
11... Bb4+ {[%clk 0:02:33.8]} 12. Bd2 {[%clk 0:02:52.2]} 12... Bxd2+ {[%clk
0:02:32.5]} 13. Kxd2 {[%clk 0:02:52.2]} 13... O-O {[%clk 0:02:23.5]} 14. Bf3
{[%clk 0:02:46.5]} 14... Rd8 {[%clk 0:02:16.6]} 15. Ke3 {[%clk 0:02:41.5]} 15...
a6 {[%clk 0:02:10.4]} 16. Nc3 {[%clk 0:02:40.8]} 16... Rb8 {[%clk 0:02:01.9]}
17. Na4 {[%clk 0:02:36.8]} 17... Bd7 {[%clk 0:01:21.9]} 18. Nc5 {[%clk
0:02:35.4]} 18... Bc6 {[%clk 0:01:14.4]} 19. Bxc6 {[%clk 0:02:34.2]} 19... bxc6
{[%clk 0:01:13.6]} 20. b3 {[%clk 0:02:34.3]} 20... Ng4+ {[%clk 0:01:11.5]} 21.
Ke4 {[%clk 0:02:10]} 21... Nxf2+ {[%clk 0:01:09.5]} 22. Ke3 {[%clk 0:02:08]}
22... Nxh1 {[%clk 0:01:08.7]} 23. Rxh1 {[%clk 0:02:07.8]} 23... a5 {[%clk
0:01:07.3]} 24. Rc1 {[%clk 0:02:05.6]} 24... Rb4 {[%clk 0:01:01.1]} 25. Rd1
{[%clk 0:01:56]} 25... e5 {[%clk 0:00:56.8]} 26. a3 {[%clk 0:01:34.6]} 26...
Rbxd4 {[%clk 0:00:53.7]} 27. Rc1 {[%clk 0:01:34.6]} 27... g5 {[%clk 0:00:46.1]}
28. Rc3 {[%clk 0:01:34.2]} 28... Kg7 {[%clk 0:00:44.5]} 29. Nd3 {[%clk
0:01:30.9]} 29... Rxd3+ {[%clk 0:00:40.4]} 30. Rxd3 {[%clk 0:01:30.1]} 30...
Rxd3+ {[%clk 0:00:41]} 31. Kxd3 {[%clk 0:01:30.3]} 31... f5 {[%clk 0:00:41.3]}
32. b4 {[%clk 0:01:30]} 32... axb4 {[%clk 0:00:40.3]} 33. a4 {[%clk 0:01:30.1]}
33... e4+ {[%clk 0:00:39.4]} 34. Kc4 {[%clk 0:01:27.9]} 34... e3 {[%clk
0:00:37.4]} 35. Kd3 {[%clk 0:01:27.7]} 35... b3 {[%clk 0:00:37.9]} 0-1

[Event "Late-Titled-Tuesday-Blitz-October-10-2023"]
[Site "Chess.com"]
[Date "2023.10.10"]
[Round "8"]
[White "Langua_Chess"]
[Black "FM_Kappeler"]
[Result "1-0"]
[WhiteElo "2476"]
[BlackElo "2310"]
[TimeControl "180+1"]
[EndTime "15:21:40 PDT"]
[Termination "Langua_Chess won by resignation"]

1. e4 {[%clk 0:03:00.9]} 1... c5 {[%clk 0:02:59.4]} 2. Nf3 {[%clk 0:03:01]} 2...
e6 {[%clk 0:02:59.6]} 3. d4 {[%clk 0:03:01.6]} 3... cxd4 {[%clk 0:02:59.7]} 4.
Nxd4 {[%clk 0:03:02.5]} 4... Nf6 {[%clk 0:02:59.7]} 5. Nc3 {[%clk 0:03:02.9]}
5... d6 {[%clk 0:02:59.8]} 6. Be3 {[%clk 0:02:54.1]} 6... Nc6 {[%clk 0:02:59.4]}
7. Be2 {[%clk 0:02:47.4]} 7... Be7 {[%clk 0:02:58.8]} 8. O-O {[%clk 0:02:47.8]}
8... O-O {[%clk 0:02:58.5]} 9. h3 {[%clk 0:02:34.8]} 9... Qc7 {[%clk 0:02:49]}
10. Nb3 {[%clk 0:01:50.6]} 10... a6 {[%clk 0:02:41.6]} 11. a4 {[%clk 0:01:48.6]}
11... b6 {[%clk 0:02:40.9]} 12. f4 {[%clk 0:01:42.4]} 12... Bb7 {[%clk
0:02:40.6]} 13. Bf3 {[%clk 0:01:42.9]} 13... Rac8 {[%clk 0:02:39.7]} 14. Kh1
{[%clk 0:01:37.4]} 14... Nb4 {[%clk 0:02:33.4]} 15. Qd2 {[%clk 0:01:28.4]} 15...
d5 {[%clk 0:01:58.8]} 16. e5 {[%clk 0:01:19.7]} 16... Ne4 {[%clk 0:01:58.2]} 17.
Bxe4 {[%clk 0:01:12.9]} 17... dxe4 {[%clk 0:01:58.2]} 18. Qf2 {[%clk 0:01:02.3]}
18... Rfd8 {[%clk 0:01:47.5]} 19. Bxb6 {[%clk 0:01:01.2]} 19... e3 {[%clk
0:01:25.9]} 20. Bxc7 {[%clk 0:00:56.1]} 20... exf2 {[%clk 0:01:25.3]} 21. Bxd8
{[%clk 0:00:56.9]} 21... Rxd8 {[%clk 0:01:13.8]} 22. Rxf2 {[%clk 0:00:55.1]}
22... Bh4 {[%clk 0:01:09.2]} 23. Rd2 {[%clk 0:00:50.6]} 23... Rxd2 {[%clk
0:01:01.5]} 24. Nxd2 {[%clk 0:00:50.6]} 24... Nxc2 {[%clk 0:01:01.9]} 25. Rc1
{[%clk 0:00:48.9]} 25... Ne3 {[%clk 0:01:01.5]} 26. Nf3 {[%clk 0:00:47.7]} 26...
Bg3 {[%clk 0:00:57.5]} 27. Ne2 {[%clk 0:00:47.1]} 27... Bf2 {[%clk 0:00:39.1]}
28. Rc7 {[%clk 0:00:46.7]} 1-0

[Event "Late-Titled-Tuesday-Blitz-October-10-2023"]
[Site "Chess.com"]
[Date "2023.10.10"]
[Round "8"]
[White "BulteniBo"]
[Black "ItalianMachine"]
[Result "0-1"]
[WhiteElo "2523"]
[BlackElo "2426"]
[TimeControl "180+1"]
[EndTime "15:21:50 PDT"]
[Termination "ItalianMachine won by resignation"]

1. Nf3 {[%clk 0:03:00.9]} 1... Nf6 {[%clk 0:02:59.1]} 2. g3 {[%clk 0:03:01.1]}
2... d5 {[%clk 0:02:56.3]} 3. Bg2 {[%clk 0:03:01.4]} 3... c5 {[%clk 0:02:56.2]}
4. O-O {[%clk 0:03:01.8]} 4... Nc6 {[%clk 0:02:56.5]} 5. b3 {[%clk 0:03:01.1]}
5... e5 {[%clk 0:02:55.2]} 6. Bb2 {[%clk 0:02:59.8]} 6... Bd6 {[%clk 0:02:48.5]}
7. c4 {[%clk 0:02:55.6]} 7... d4 {[%clk 0:02:47.8]} 8. e3 {[%clk 0:02:55]} 8...
O-O {[%clk 0:02:45.6]} 9. exd4 {[%clk 0:02:54.3]} 9... exd4 {[%clk 0:02:45.5]}
10. d3 {[%clk 0:02:53.9]} 10... Bf5 {[%clk 0:02:40.3]} 11. a3 {[%clk 0:02:52.4]}
11... Qd7 {[%clk 0:02:35.6]} 12. Qc2 {[%clk 0:02:50]} 12... Rae8 {[%clk
0:02:30.8]} 13. Nbd2 {[%clk 0:02:50]} 13... Bh3 {[%clk 0:02:11.9]} 14. Rfe1
{[%clk 0:02:47.5]} 14... Bxg2 {[%clk 0:02:10.8]} 15. Kxg2 {[%clk 0:02:48.4]}
15... h6 {[%clk 0:01:51.6]} 16. Ne4 {[%clk 0:02:11.8]} 16... Nxe4 {[%clk
0:01:33.5]} 17. dxe4 {[%clk 0:02:12.7]} 17... Re7 {[%clk 0:01:26.3]} 18. Rad1
{[%clk 0:02:08.5]} 18... a5 {[%clk 0:01:19]} 19. Nd2 {[%clk 0:01:52.4]} 19...
Ne5 {[%clk 0:01:16.8]} 20. f4 {[%clk 0:01:46.8]} 20... Ng4 {[%clk 0:01:15.8]}
21. Nf1 {[%clk 0:01:46.6]} 21... Qc6 {[%clk 0:01:09]} 22. h3 {[%clk 0:01:45.2]}
22... Nf6 {[%clk 0:01:09]} 23. Nd2 {[%clk 0:01:26.2]} 23... Rfe8 {[%clk
0:01:07.2]} 24. Kh2 {[%clk 0:00:43.6]} 24... Nxe4 {[%clk 0:01:06.2]} 25. Nf3
{[%clk 0:00:43.8]} 25... Nc3 {[%clk 0:00:54.6]} 26. Rxe7 {[%clk 0:00:40.9]}
26... Rxe7 {[%clk 0:00:55.5]} 27. Bxc3 {[%clk 0:00:16.2]} 27... Qxf3 {[%clk
0:00:54.8]} 0-1

[Event "Late-Titled-Tuesday-Blitz-October-10-2023"]
[Site "Chess.com"]
[Date "2023.10.10"]
[Round "8"]
[White "Mariia89"]
[Black "Dannyyi"]
[Result "0-1"]
[WhiteElo "2084"]
[BlackElo "2295"]
[TimeControl "180+1"]
[EndTime "15:22:17 PDT"]
[Termination "Dannyyi won on time"]

1. d4 {[%clk 0:02:58.3]} 1... Nf6 {[%clk 0:02:59.5]} 2. Nf3 {[%clk 0:02:58.3]}
2... g6 {[%clk 0:02:59.4]} 3. c4 {[%clk 0:02:58.6]} 3... Bg7 {[%clk 0:02:59.2]}
4. Nc3 {[%clk 0:02:59.2]} 4... d5 {[%clk 0:02:59.4]} 5. Bg5 {[%clk 0:02:58.9]}
5... Ne4 {[%clk 0:02:59.1]} 6. cxd5 {[%clk 0:02:58.6]} 6... Nxg5 {[%clk
0:02:59]} 7. Nxg5 {[%clk 0:02:58.9]} 7... e6 {[%clk 0:02:59.6]} 8. Nf3 {[%clk
0:02:58.9]} 8... exd5 {[%clk 0:02:59.8]} 9. e3 {[%clk 0:02:59.8]} 9... O-O
{[%clk 0:02:57.7]} 10. Be2 {[%clk 0:03:00]} 10... c6 {[%clk 0:02:55.8]} 11. O-O
{[%clk 0:03:00.2]} 11... Nd7 {[%clk 0:02:55]} 12. b4 {[%clk 0:02:57.9]} 12... a6
{[%clk 0:02:46]} 13. Na4 {[%clk 0:02:51.4]} 13... b5 {[%clk 0:02:41.4]} 14. Nc5
{[%clk 0:02:48.3]} 14... Nxc5 {[%clk 0:02:37.3]} 15. bxc5 {[%clk 0:02:48]} 15...
a5 {[%clk 0:02:35.2]} 16. Re1 {[%clk 0:02:23.3]} 16... Re8 {[%clk 0:02:33.5]}
17. h3 {[%clk 0:02:21.5]} 17... Bf5 {[%clk 0:02:32.4]} 18. Bd3 {[%clk
0:02:21.6]} 18... Qd7 {[%clk 0:02:25.6]} 19. Rb1 {[%clk 0:02:10.8]} 19... h6
{[%clk 0:02:14]} 20. Qc2 {[%clk 0:01:40]} 20... Be4 {[%clk 0:02:03.2]} 21. Nd2
{[%clk 0:01:39.1]} 21... Bxd3 {[%clk 0:01:58.5]} 22. Qxd3 {[%clk 0:01:39.2]}
22... Re7 {[%clk 0:01:51.5]} 23. Nb3 {[%clk 0:01:23.1]} 23... Kh7 {[%clk
0:01:47.5]} 24. Qd2 {[%clk 0:01:16.9]} 24... Qc7 {[%clk 0:01:43.8]} 25. Nc1
{[%clk 0:01:16.2]} 25... f5 {[%clk 0:01:40.4]} 26. Nd3 {[%clk 0:01:16.3]} 26...
Rf8 {[%clk 0:01:36.6]} 27. Rb3 {[%clk 0:01:09.2]} 27... Kh8 {[%clk 0:01:31.7]}
28. Ra3 {[%clk 0:01:09]} 28... a4 {[%clk 0:01:31]} 29. Rc3 {[%clk 0:01:04.4]}
29... Rfe8 {[%clk 0:01:30]} 30. Rb1 {[%clk 0:01:00.8]} 30... g5 {[%clk
0:01:28.3]} 31. g3 {[%clk 0:00:58.1]} 31... Re4 {[%clk 0:01:22.1]} 32. Qc2
{[%clk 0:00:52.7]} 32... Qf7 {[%clk 0:01:19.1]} 33. Nb4 {[%clk 0:00:51.2]} 33...
Qg6 {[%clk 0:01:16.5]} 34. Kg2 {[%clk 0:00:23.2]} 34... f4 {[%clk 0:01:11.5]}
0-1

[Event "Late-Titled-Tuesday-Blitz-October-10-2023"]
[Site "Chess.com"]
[Date "2023.10.10"]
[Round "8"]
[White "KejJaj"]
[Black "victormago"]
[Result "0-1"]
[WhiteElo "2157"]
[BlackElo "2487"]
[TimeControl "180+1"]
[EndTime "15:22:18 PDT"]
[Termination "victormago won by checkmate"]

1. d4 {[%clk 0:03:00.9]} 1... Nf6 {[%clk 0:02:59.4]} 2. Bf4 {[%clk 0:03:01.4]}
2... c5 {[%clk 0:02:55.9]} 3. d5 {[%clk 0:03:00.9]} 3... e6 {[%clk 0:02:55.7]}
4. c4 {[%clk 0:02:57.9]} 4... exd5 {[%clk 0:02:55.7]} 5. cxd5 {[%clk 0:02:58.8]}
5... d6 {[%clk 0:02:56.2]} 6. Nc3 {[%clk 0:02:58.9]} 6... a6 {[%clk 0:02:54.7]}
7. a4 {[%clk 0:02:58.3]} 7... g6 {[%clk 0:02:55.1]} 8. e4 {[%clk 0:02:57.4]}
8... Bg7 {[%clk 0:02:54.9]} 9. f3 {[%clk 0:02:55.3]} 9... O-O {[%clk 0:02:54.6]}
10. Bc4 {[%clk 0:02:48.8]} 10... Re8 {[%clk 0:02:50.7]} 11. Nge2 {[%clk
0:02:48.2]} 11... Nbd7 {[%clk 0:02:39.6]} 12. O-O {[%clk 0:02:47.3]} 12... Ne5
{[%clk 0:02:39.8]} 13. Bxe5 {[%clk 0:02:33.1]} 13... Rxe5 {[%clk 0:02:38.4]} 14.
f4 {[%clk 0:02:26.9]} 14... Rxe4 {[%clk 0:02:34.1]} 15. Nxe4 {[%clk 0:02:25.3]}
15... Nxe4 {[%clk 0:02:34.1]} 16. Qc1 {[%clk 0:02:03.4]} 16... Bg4 {[%clk
0:02:25.5]} 17. Nc3 {[%clk 0:01:56.9]} 17... Bd4+ {[%clk 0:02:19.4]} 18. Kh1
{[%clk 0:01:53.4]} 18... Nf2+ {[%clk 0:02:13.3]} 19. Rxf2 {[%clk 0:01:54]} 19...
Bxf2 {[%clk 0:02:13.8]} 20. Qd2 {[%clk 0:01:42.9]} 20... Bd4 {[%clk 0:02:13.3]}
21. Re1 {[%clk 0:01:37.7]} 21... Bd7 {[%clk 0:02:04.3]} 22. Ne4 {[%clk 0:01:36]}
22... Bxa4 {[%clk 0:01:56.5]} 23. b3 {[%clk 0:01:30.8]} 23... Be8 {[%clk
0:01:55.8]} 24. Ng3 {[%clk 0:01:21.5]} 24... b5 {[%clk 0:01:52.4]} 25. Bd3
{[%clk 0:01:18.9]} 25... a5 {[%clk 0:01:46.5]} 26. f5 {[%clk 0:01:18.4]} 26...
a4 {[%clk 0:01:44.6]} 27. fxg6 {[%clk 0:01:15.9]} 27... hxg6 {[%clk 0:01:44.8]}
28. bxa4 {[%clk 0:01:12.1]} 28... bxa4 {[%clk 0:01:45]} 29. Bc4 {[%clk
0:00:57.9]} 29... a3 {[%clk 0:01:41.8]} 30. Rf1 {[%clk 0:00:49.7]} 30... Qe7
{[%clk 0:01:20.6]} 31. Re1 {[%clk 0:00:48.9]} 31... Qf8 {[%clk 0:01:09.6]} 32.
Ne4 {[%clk 0:00:45.8]} 32... Bd7 {[%clk 0:01:00.6]} 33. Ba2 {[%clk 0:00:39.4]}
33... Bf5 {[%clk 0:00:55.3]} 34. Ng5 {[%clk 0:00:38.7]} 34... Qh6 {[%clk
0:00:50.7]} 35. Qf4 {[%clk 0:00:20.8]} 35... Be5 {[%clk 0:00:46.4]} 36. Qd2
{[%clk 0:00:11.5]} 36... Qxh2# {[%clk 0:00:45.1]} 0-1